Cogmind - Beta 17 @@@ ROGUE MODE // 2026.07.26 @ 00:22:46 Player: thingimabob Result: Destroyed by IL-FV8(R) with Subdweller Machine Gun Performance ------------- Evolutions (0) 0 Regions Visited (1) 200 Robots Destroyed (24) 120 Value Destroyed (503) 503 Prototype IDs (2) 40 Alien Tech Used (0) 0 Bonus (0) 0 TOTAL SCORE: 863 Bonus ------- None Cogmind --------- Core Integrity 0/250 Matter 300/300 Energy 80/100 System Corruption 0% Temperature Cool (0) Movement Core (400) Ox7 Location -10/Materials Parts ------- > --- POWER (1) -------- (None) > --- PROPULSION (2) --- (None) > --- UTILITY (2) ------ Large Storage Unit > --- WEAPON (2) ------- Medium Laser > --- INVENTORY (15) --- Small Matter Pod (50) Improved Terrain Scanner ECM Suite EM Pulse Gun Grenade Launcher Peak State ------------ > --- POWER ------------ Light Ion Engine > --- PROPULSION ------- Aluminum Leg Aluminum Leg > --- UTILITY ---------- Small Storage Unit Seismic Detector > --- WEAPON ----------- Medium Laser Medium Laser > --- INVENTORY -------- Light Ion Engine EM Pulse Gun [Rating: 7] Favorites ----------- Power Light Ion Engine Engine Light Ion Engine Propulsion Aluminum Leg Leg Aluminum Leg Utility Seismic Detector Device Seismic Detector Storage Large Storage Unit Weapon Medium Laser Energy Gun Medium Laser Ballistic Gun Subdweller Machine Gun Launcher Grenade Launcher Build | -11 -10 ------- Run | Yrd Mat Slots Evolved . | . . Power . | . . Propulsion . | . . Utility . | . . Weapon . | . . Parts Attached 13 | 7 6 Power 2 | 1 1 Engine 2 | 1 1 Core . | . . Reactor . | . . Propulsion 2 | 2 . Treads . | . . Leg 2 | 2 . Wheel . | . . Hover . | . . Flight . | . . Utility 4 | 2 2 Device 1 | 1 . Storage 3 | 1 2 Processor . | . . Hackware . | . . Protection . | . . Artifact . | . . Weapon 5 | 2 3 Energy Gun 3 | 2 1 Energy Cannon . | . . Ballistic Gun 1 | . 1 Ballistic Cannon . | . . Launcher 1 | . 1 Special Weapon . | . . Impact Weapon . | . . Slashing Weapon . | . . Piercing Weapon . | . . Special Melee Weapon . | . . Unidentified Prototypes . | . . Parts Lost 9 | . 9 Power 2 | . 2 Propulsion 2 | . 2 Utility 1 | . 1 Weapon 4 | . 4 Highest Loss Streak 4 | . 4 To Critical Strikes . | . . Average Backups 5 | 1 5 Power . | . . Propulsion . | . . Utility 2 | . 2 Weapon 2 | . 2 Tool/Special . | . . Unused Backups 5 | . 5 Power . | . . Propulsion . | . . Utility 3 | . 3 Weapon 2 | . 2 Tool/Special . | . . Average Slot Usage (%) 88 | . 88 Engine 10 | . 10 Leg 21 | . 21 Device 13 | . 13 Storage 14 | . 14 Energy Gun 26 | . 26 Peak Build Rating 7 | 7 7 Average Rating 6 | 5 6 On Entrance 3 | . 7 Avg Prop Armor Cover (%) . | . . Naked Turns . | . . Heaviest Build 29 | 13 29 Greatest Support 20 | 20 20 Greatest Overweight (x) 8 | 1 8 Average Overweight (x) 1 | . 1 Largest Inventory Capacity 15 | 8 15 Average Capacity 12 | 7 13 Most Carried 7 | 3 7 Average Carried 5 | 1 5 Final Capacity 15 | 8 15 Final Carried 5 | 3 5 Class Distribution -------------------- 100% | Mutant Dominant Class ---------------- Mutant | -10/Materials Resources | -11 -10 ----------- Run | Yrd Mat Matter Collected 452 | 270 182 Remotely . | . . Salvage Created 636 | 175 461 Parts 43 | 17 26 Haulers Intercepted 2 | . 2 Recyclers Shooed 3 | 1 2 Parts Field Recycled . | . . Retrieved Matter . | . . Parts Self-Destructed . | . . Prevented . | . . Parts Restored . | . . Kills | -11 -10 ------- Run | Yrd Mat Combat Hostiles Destroyed 11 | . 11 Guns 8 | . 8 AOE 2 | . 2 Classes Destroyed 9 | 3 6 Worker 2 | 1 1 Builder 1 | . 1 Tunneler 5 | 5 . Hauler 2 | . 2 Recycler 1 | 1 . Operator 1 | . 1 Watcher 1 | . 1 Grunt 9 | . 9 Subdweller 2 | . 2 Best Kill Streak 6 | 5 6 Combat Bots Only 3 | . 3 Max Kills in Single Turn 2 | 1 2 Gunslinging . | . . Exploded 1 | . 1 Melee . | . . Uniques/NPCs Destroyed . | . . Combat | -11 -10 -------- Run | Yrd Mat Hostile Shots Fired 84 | . 84 Missed 22 | . 22 Hits 62 | . 62 Projectile 62 | . 62 Damage Taken 961 | . 961 Core 252 | . 252 Absorbed by Shields . | . . Core Remaining (%) 100 | 100 . Volleys Fired 76 | 16 60 Largest 2 | 2 2 Hottest 100 | 100 100 Shots Fired 126 | 32 94 Gun 120 | 32 88 Cannon . | . . Launcher 6 | . 6 Special . | . . Kinetic 4 | . 4 Thermal 116 | 32 84 Explosive 6 | . 6 Electromagnetic . | . . Robot Hit Streak 11 | 4 11 Robot Miss Streak 3 | 3 3 Penetration Max . | . . Secondary Targets . | . . Shots Hit Robots 83 | 18 65 Core Hits 40 | 8 32 Critical Kills . | . . Critical Parts Destroyed . | . . Critical Strikes 8 | . 8 Burn 8 | . 8 Melee Attacks . | . . Impact . | . . Slashing . | . . Piercing . | . . Sneak Attacks . | . . Combat Hostiles . | . . Follow-up Attacks . | . . Damage Inflicted 1605 | 224 1381 Guns 1020 | 224 796 Cannons . | . . Explosions 585 | . 585 Melee . | . . Ramming . | . . Kinetic 73 | . 73 Thermal 947 | 224 723 Explosive 585 | . 585 Electromagnetic . | . . Impact . | . . Slashing . | . . Piercing . | . . Highest Corruption . | . . Average Corruption . | . . Corruption Purged . | . . Corruption Blocked . | . . Overload Shots . | . . Overflow Damage . | . . Projectiles . | . . Explosions . | . . Melee . | . . Knockbacks . | . . Impact . | . . Kinetic . | . . Secondary . | . . Self-Inflicted Damage 37 | . 37 Shots 1 | . 1 Rammed . | . . Targets Rammed . | . . Kicked . | . . Crushed . | . . Highest Temperature 354 | 156 354 Average Temperature 70 | 61 74 Received Heat Transfer 288 | . 288 Effects 4 | . 4 Energy Bleed 1 | . 1 Interference 3 | . 3 Siege Activations . | . . Martial Activations . | . . Shielding Activations . | . . Robots Disrupted . | . . Combat Hostiles . | . . Robots Corrupted . | . . Combat Hostiles . | . . Parts Fried . | . . Impact Corruptions . | . . Robots Melted 2 | . 2 Combat Hostiles 1 | . 1 Parts Melted 10 | 4 6 Heat Transferred 3309 | 666 2643 Parts Sabotaged . | . . Parts Stolen . | . . Parts Stripped . | . . Power Chain Reactions . | . . Alert | -11 -10 ------- Run | Yrd Mat Maximum Alert Level . | . . Low Security (%) 100 | 100 100 Level 1 . | . . Level 2 . | . . Level 3 . | . . Level 4 . | . . Level 5 . | . . High Security . | . . Max Security . | . . Peak Influence 162 | 10 162 Initial 6 | . 6 Average 43 | 2 49 Influence Increases 356 | 35 321 Destroy 0b10 Robot/C 180 | . 180 Destroy 0b10 Robot/NC 65 | 35 30 Destroy Leader 46 | . 46 Successful Hack 15 | . 15 Disable Machine 30 | . 30 Destroy Structure 20 | . 20 Influence Decreases 356 | 25 331 Entered New Map 4 | . 4 Time Decay 281 | 25 256 Lost Part 71 | . 71 Squads Dispatched 3 | . 3 Investigation 2 | . 2 Extermination . | . . Reinforcement 1 | . 1 Assault . | . . Garrison . | . . Intercept . | . . Searches Triggered . | . . Construction Impeded . | . . Haulers Reinforced . | . . Active Scanning Responses . | . . Cargo Convoy Interrupts . | . . Stealth | -11 -10 --------- Run | Yrd Mat Distress Signals 3 | . 3 Communications Jammed . | . . Distress Signals . | . . Times Spotted 26 | . 26 Peak Tracking Total 8 | . 8 Tactical Retreats 1 | . 1 Traps | -11 -10 ------- Run | Yrd Mat Traps Triggered 1 | . 1 Indirectly . | . . Trap Hack Attempts . | . . Triggered . | . . Disarmed . | . . Reprogrammed . | . . Reused . | . . Traps Extracted . | . . Installed . | . . Triggered . | . . Machines | -11 -10 ---------- Run | Yrd Mat Machines Disabled 2 | . 2 Max in Single Turn 1 | . 1 Machines Repaired . | . . Machines Dismantled . | . . Machines Sabotaged . | . . Overloaded Fab Kills . | . . Hacking | -11 -10 --------- Run | Yrd Mat Machines Accessed 5 | . 5 Terminals 5 | . 5 Fabricators . | . . Repair Stations . | . . Recycling Units . | . . Scanalyzers . | . . Garrison Access . | . . Total Hacks 15 | . 15 Successful 10 | . 10 Failed 5 | . 5 Catastrophic . | . . Database Lockouts . | . . Manual 13 | . 13 Terminals 15 | . 15 Fabricators . | . . Repair Stations . | . . Recycling Units . | . . Scanalyzers . | . . Garrison Access . | . . Terminal Hacks 5 | . 5 Prototype ID Bank 1 | . 1 Branch Access Points 1 | . 1 Emergency Access Points 1 | . 1 Terminal Index 1 | . 1 Hauler Manifests 1 | . 1 Fabricator Hacks . | . . Repair Station Hacks . | . . Recycling Unit Hacks . | . . Scanalyzer . | . . Garrison Access Hacks . | . . Unauthorized Hacks 5 | . 5 Terminals 5 | . 5 Botnet 2 | . 2 Skim 3 | . 3 Fabricators . | . . Repair Stations . | . . Recycling Units . | . . Scanalyzers . | . . Garrison Access . | . . Data Cores Recovered 1 | . 1 Used 1 | . 1 Hacking Detections 5 | . 5 Full Trace Events 1 | . 1 Feedback Events . | . . Feedback Blocked . | . . Robot Schematics Acquired . | . . Robots Built . | . . Authchips . | . . Time . | . . Total Robot Build Rating . | . . Part Schematics Acquired . | . . Parts Built . | . . Authchips . | . . Time . | . . Total Part Build Rating . | . . Part Studies Acquired . | . . Parts Repaired . | . . Time . | . . Parts Recycled . | . . Recycled Matter . | . . Retrieved Matter . | . . Retrieved Components . | . . Parts Scanalyzed . | . . Part Schematics Acquired . | . . Parts Damaged . | . . Bothacking | -11 -10 ------------ Run | Yrd Mat Used RIF Installer . | . . Robots Hacked . | . . Non-combat . | . . Combat . | . . Robot Hacks Applied . | . . Relay Couplers Released . | . . Fabnet Peak Effective % . | . . Robots Rewired . | . . Allies Hacked . | . . Hacks Repelled . | . . Allies | -11 -10 -------- Run | Yrd Mat Total Allies . | . . Largest Group . | . . Highest-Rated Group . | . . Highest-Rated Ally . | . . Total Orders . | . . Ally Attacks . | . . Total Damage . | . . Kills . | . . Allies Corrupted . | . . Allies Melted . | . . Intel | -11 -10 ------- Run | Yrd Mat Active Infowar (turns) 740 | 45 695 Seismic 740 | 45 695 Robot Analysis Total . | . . Derelict Logs Recovered . | . . Drone Launches . | . . Drone Recoveries . | . . Exploration | -11 -10 ------------- Run | Yrd Mat Turns Passed 870 | 119 751 Spaces Moved 344 | 52 292 Core 43 | 10 33 Treads . | . . Legs 301 | 42 259 Wheels . | . . Hover . | . . Flight . | . . Fastest Speed 50 | 50 120 Average Speed 172 | 111 183 Slowest Speed 450 | 120 450 Overloaded Moves . | . . Propulsion Burnouts . | . . Robots Hopped . | . . Potential Cave-ins . | . . Cave-ins Triggered . | . . Exploration Rate (%) 15 | 3 28 Regions Visited 1 Branch Regions . Pre-discovered Areas . | . . Known Exits Taken . | . . Unknown Exits Taken 1 | 1 . Scrap Searched . | . . Spaces Dug . | . . Terrain Destroyed 27 | . 27 Melee . | . . Projectile 1 | . 1 AOE 26 | . 26 Terrain Rammed . | . . Walls Destroyed . | . . Machines Disabled . | . . Actions | -11 -10 --------- Run | Yrd Mat Total 489 | 77 412 Wait 46 | . 46 Move 343 | 51 292 Hop . | . . Pick Up 8 | 3 5 Fast Attach 8 | 7 1 Attach 3 | . 3 Detach . | . . Swap 3 | . 3 Drop 2 | . 2 Fire 76 | 16 60 Melee . | . . Ram . | . . Kick . | . . Crush . | . . Escape Stasis . | . . Rewire . | . . Trap . | . . Miscellaneous . | . . Route ------- -11/Scrapyard -10/Materials (discovered 3 exits: [*Mat] / Min x2) History --------- Turn | Location | Event 5 | -11/Scrapyard | Discovered new exit (range 16) 120 | -11/Scrapyard | Entered Materials 203 | -10/Materials | Identified exit to Mines 315 | -10/Materials | Build established: Mutant 339 | -10/Materials | Discovered new exit (range 7) 511 | -10/Materials | Core integrity fell below 50% 620 | -10/Materials | Derelicts attacked the area 731 | -10/Materials | Lost 3 parts (1p2n) 868 | -10/Materials | Core integrity fell below 20% 871 | -10/Materials | Destroyed by IL-FV8(R) with Subdweller Machine Gun Last Messages --------------- Aluminum Leg destroyed. Lgt. Ion Engine destroyed. V2-RB1(R) destroyed. Acquired Sub. Machine Gun. Seismic Detector destroyed. Med. Laser destroyed. K-01 Serf destroyed. ND-NJ7(R) destroyed. Acquired 12 matter. R-06 Scavenger collects Hacking Suite. U-05 Engineer builds a Wall. Acquired 2 matter. R-06 Scavenger collects Wheel. Acquired 2 matter. IL-FV8(R) affixes Scrap Shield Fragment to Scrap Shield. U-05 Engineer builds a Wall. Sub. Machine Gun destroyed. Sml. Laser destroyed. Acquired 10 matter. Map ----- +----------------------------------------------------+ | ????????????????????????????????????????????????? | | ????????????????????????????????????????????????? | | ????????????????????????????????????????????????? | | ????????????????????????????????????????????????? | | ????????????????????????????????????????????????? | | ????????????????????????????????????????????????? | | ????????????????????????????????????????????????? | | ????????????????????????????????????????????????? | | ????????????????????????????????????????????????? | | ????????????????????????????????????????????????? | | ?????????????????????? ?????????????????????? | | ?????????????????????? ???????????????????? | | ?????????????????????? ???????????????????? | | ?????????????????????? ??? ???????????????? | | ???????????????????#######+### ???????????????? | | ???????????????????#= # "" ???????????????? | | ????????????????????* w%" ??????????????? | | ????????????????>??? % = ???>??????????? | | ????????????????????? [% ??????????????? | | ????????????????????? # r %;???????????????? | | ?????????????????????? # ==#???????????????? | | ?????????????????????? # u #???????????????? | | ?????????#####?????????# """" #???????????????? | | ?????????#== #????????##% """ #???????????????? | | ?????????#== #######??##% """ #???????????????? | | ?????????#!! #####@ *%& ###?????????????? | | ?????????#!! ! % R= #?????????????? | | ?????????#== T *% +?????????????? | | ?????????#== % ; !??????????? | | ?????????##### %##### ## !!?????????? | | ?????????????#####=#???### ##### #??????????????? | | ?????????????????# #?????#%#?????#??????????????? | | ?????????????????#%#?????#+#####+###????????????? | | ?????????????????# #?????# #????????????? | | ???????????####### #?????# % #??????####### | | ??????????##! !!## #?????# #??????# | | ??????????#! !# #?????# """ ########& """ | | ???######## # #?????# """ + %+& """ | | ??? ## # ##????# """ ########& """ | | ??? """ # #????# "T" #??????# | | #? """"" # #????# *% #??????# | | # """"" # #????#####+###############+## | | # """"" + ###+####???????# !! | | #! """ # # #???????# !! | | # # < # T #???????# | | # # #= #???????##################/## | | # "T" ##### #??????????????????????? ? | | ##########???# #??????????????????????# ? | | ?????????????# #??????????????????????# ? | | ?????????????########??????????????????????# ? | +----------------------------------------------------+ Best States ------------- Heat Dissipation 25 Energy Generation 10 Energy Capacity 125 Matter Stores 300 Matter Capacity 300 Sight Range 16 Terrain Scan Density 10 Evasion (%) 55 Item Schematics ----------------- None Robot Schematics ------------------ None Fabricated ------------ Nothing Repaired ---------- Nothing Studied --------- None Alien Tech Used ----------------- None Achievements -------------- None Challenges ------------ None Game ------ Seed PersonalGravjetStreamer Manual? 0 Play Time 00:10:21 Cumulative 59.6 hours Start 2026.07.26 @ 00:15:10 End 2026.07.26 @ 00:22:46 Sessions 1 Manual Loads 0 Difficulty Rogue Special Mode None Game No. 72 Rogue 72 Adventurer 0 Explorer 0 Win Type - Total 1 Types 1/0/0/0/0/0/0/0/0/0 Lore% 38 Gallery% 34 Achievement% 32 Wizard Run 0 Options --------- Layout 1 ASCII 0 Keyboard 0 Movement Mouse Keybinds 0 Fullscreen 2 Font 24/Smallcaps Map View 50x35 Zoom Use 0% Tactical HUD 0 Map Filters NONE Filters NONE Steam 1 RUN: 879375d2-4733-4943-b8e8-1ae1f623127d